[Event "*** Titled Tuesday Blitz"]
[Site "Chess.com"]
[Date "2020.12.01"]
[Round "10"]
[White "IngOscarArdila"]
[Black "Lysiak_Poltorak"]
[Result "0-1"]
[WhiteElo "2197"]
[BlackElo "2366"]
[TimeControl "180+1"]
[EndTime "11:55:09 PST"]
[Termination "Lysiak_Poltorak won by checkmate"]

1. d4 {[%clk 0:02:59.1]} 1... Nf6 {[%clk 0:02:59.1]} 2. c4 {[%clk 0:02:59.1]}
2... e6 {[%clk 0:02:59.3]} 3. Nc3 {[%clk 0:02:58.4]} 3... Bb4 {[%clk 0:02:59.6]}
4. Bd2 {[%clk 0:02:58.3]} 4... d5 {[%clk 0:02:57.3]} 5. e3 {[%clk 0:02:57.4]}
5... O-O {[%clk 0:02:56.7]} 6. Nf3 {[%clk 0:02:56.8]} 6... c5 {[%clk 0:02:56.8]}
7. dxc5 {[%clk 0:02:52.7]} 7... Bxc5 {[%clk 0:02:54.5]} 8. cxd5 {[%clk 0:02:50]}
8... exd5 {[%clk 0:02:54.3]} 9. Bd3 {[%clk 0:02:48.6]} 9... Nc6 {[%clk
0:02:43.9]} 10. O-O {[%clk 0:02:48.1]} 10... Bg4 {[%clk 0:02:43.7]} 11. Be2
{[%clk 0:02:46.6]} 11... Re8 {[%clk 0:02:42]} 12. Rc1 {[%clk 0:02:45]} 12... Bb6
{[%clk 0:02:41.6]} 13. Nb5 {[%clk 0:02:44.1]} 13... Ne4 {[%clk 0:02:39.7]} 14.
Be1 {[%clk 0:02:38.5]} 14... Rc8 {[%clk 0:02:16.6]} 15. Nbd4 {[%clk 0:02:37.2]}
15... Qd6 {[%clk 0:02:14.3]} 16. Bc3 {[%clk 0:02:23.6]} 16... a6 {[%clk
0:02:04.2]} 17. g3 {[%clk 0:02:08.5]} 17... Bh3 {[%clk 0:01:48.6]} 18. Re1
{[%clk 0:02:06.7]} 18... Nxc3 {[%clk 0:01:47.6]} 19. bxc3 {[%clk 0:02:03.6]}
19... Nxd4 {[%clk 0:01:48.1]} 20. cxd4 {[%clk 0:02:00.1]} 20... Ba5 {[%clk
0:01:46]} 21. Rf1 {[%clk 0:01:46.5]} 21... Bxf1 {[%clk 0:01:44.8]} 22. Bxf1
{[%clk 0:01:47.4]} 22... Qa3 {[%clk 0:01:42]} 23. Rc2 {[%clk 0:01:43.1]} 23...
h6 {[%clk 0:01:32.4]} 24. Ne5 {[%clk 0:01:42.8]} 24... Rc3 {[%clk 0:01:17.9]}
25. Rxc3 {[%clk 0:01:41.6]} 25... Qxc3 {[%clk 0:01:18.8]} 26. Bd3 {[%clk
0:01:41.2]} 26... Qe1+ {[%clk 0:01:16.5]} 27. Qxe1 {[%clk 0:01:41.2]} 27... Bxe1
{[%clk 0:01:17.4]} 28. Kf1 {[%clk 0:01:39.5]} 28... Ba5 {[%clk 0:01:17.4]} 29.
Ke2 {[%clk 0:01:36.5]} 29... Bc7 {[%clk 0:01:16.4]} 30. Nf3 {[%clk 0:01:31.2]}
30... Bd6 {[%clk 0:01:16.2]} 31. Kd2 {[%clk 0:01:21]} 31... Rc8 {[%clk
0:01:14.8]} 32. Bb1 {[%clk 0:01:20.9]} 32... Bb4+ {[%clk 0:01:11.5]} 33. Kd1
{[%clk 0:01:20.9]} 33... f6 {[%clk 0:01:09.5]} 34. Nh4 {[%clk 0:01:19.9]} 34...
Kf7 {[%clk 0:01:05.9]} 35. Bg6+ {[%clk 0:01:19.3]} 35... Ke7 {[%clk 0:01:03.2]}
36. Nf5+ {[%clk 0:01:18.7]} 36... Kf8 {[%clk 0:01:03.1]} 37. h4 {[%clk 0:01:17]}
37... b5 {[%clk 0:00:59.8]} 38. h5 {[%clk 0:01:11.5]} 38... a5 {[%clk
0:00:58.3]} 39. f3 {[%clk 0:01:03.3]} 39... Ba3 {[%clk 0:00:56.5]} 40. e4 {[%clk
0:01:03.2]} 40... dxe4 {[%clk 0:00:55]} 41. fxe4 {[%clk 0:01:03.1]} 41... b4
{[%clk 0:00:53.6]} 42. d5 {[%clk 0:00:59.5]} 42... a4 {[%clk 0:00:53.3]} 43. Nd4
{[%clk 0:00:47.2]} 43... Bb2 {[%clk 0:00:42.1]} 44. Ne6+ {[%clk 0:00:28.2]}
44... Ke7 {[%clk 0:00:40.9]} 45. Nxg7 {[%clk 0:00:26.1]} 45... b3 {[%clk
0:00:40.2]} 46. axb3 {[%clk 0:00:26.5]} 46... a3 {[%clk 0:00:39.3]} 47. Nf5+
{[%clk 0:00:26]} 47... Kf8 {[%clk 0:00:37.5]} 48. Nxh6 {[%clk 0:00:16.3]} 48...
a2 {[%clk 0:00:36.7]} 49. Nf5 {[%clk 0:00:16.6]} 49... a1=Q+ {[%clk 0:00:37.1]}
50. Ke2 {[%clk 0:00:17.1]} 50... Rc2+ {[%clk 0:00:35.2]} 51. Kf3 {[%clk
0:00:17]} 51... Qd1+ {[%clk 0:00:32.8]} 52. Kf4 {[%clk 0:00:16.4]} 52... Rf2+
{[%clk 0:00:31.1]} 53. Ke3 {[%clk 0:00:14.5]} 53... Qd2# {[%clk 0:00:31.7]} 0-1

[Event "*** Titled Tuesday Blitz"]
[Site "Chess.com"]
[Date "2020.12.01"]
[Round "10"]
[White "cstevens1"]
[Black "PowerThinking2650"]
[Result "0-1"]
[WhiteElo "2634"]
[BlackElo "2455"]
[TimeControl "180+1"]
[EndTime "11:55:10 PST"]
[Termination "PowerThinking2650 won on time"]

1. e4 {[%clk 0:03:00.9]} 1... e5 {[%clk 0:02:57.7]} 2. Nf3 {[%clk 0:03:01.1]}
2... Nc6 {[%clk 0:02:57.4]} 3. Bb5 {[%clk 0:03:01.2]} 3... a6 {[%clk 0:02:56.8]}
4. Ba4 {[%clk 0:03:00.6]} 4... Nf6 {[%clk 0:02:57.1]} 5. d3 {[%clk 0:03:01.1]}
5... b5 {[%clk 0:02:56]} 6. Bb3 {[%clk 0:03:01.4]} 6... Be7 {[%clk 0:02:56.7]}
7. O-O {[%clk 0:03:01.7]} 7... O-O {[%clk 0:02:56.6]} 8. Re1 {[%clk 0:03:01.9]}
8... d6 {[%clk 0:02:56.3]} 9. a4 {[%clk 0:03:02.3]} 9... Bg4 {[%clk 0:02:55.4]}
10. Be3 {[%clk 0:02:52.7]} 10... Nd4 {[%clk 0:02:50.1]} 11. Bxd4 {[%clk
0:02:52.4]} 11... exd4 {[%clk 0:02:51]} 12. h3 {[%clk 0:02:52.6]} 12... Bxf3
{[%clk 0:02:45.2]} 13. Qxf3 {[%clk 0:02:53.5]} 13... c5 {[%clk 0:02:43.2]} 14.
Nd2 {[%clk 0:02:39.4]} 14... Rb8 {[%clk 0:02:35.1]} 15. axb5 {[%clk 0:02:37.6]}
15... axb5 {[%clk 0:02:33.5]} 16. e5 {[%clk 0:02:30.8]} 16... dxe5 {[%clk
0:02:29]} 17. Rxe5 {[%clk 0:02:30.7]} 17... Bd6 {[%clk 0:02:29.3]} 18. Rf5
{[%clk 0:02:29.7]} 18... Qe7 {[%clk 0:01:55.6]} 19. g3 {[%clk 0:01:58.4]} 19...
Rbc8 {[%clk 0:01:45.7]} 20. Kg2 {[%clk 0:01:52.1]} 20... Ne8 {[%clk 0:01:36.5]}
21. Ra6 {[%clk 0:01:34.7]} 21... g6 {[%clk 0:01:29.3]} 22. Rd5 {[%clk
0:01:28.6]} 22... Be5 {[%clk 0:01:29.4]} 23. Qe4 {[%clk 0:01:10.6]} 23... Qb7
{[%clk 0:01:19.5]} 24. Ra1 {[%clk 0:00:36.8]} 24... Bd6 {[%clk 0:00:56.6]} 25.
Qf3 {[%clk 0:00:24.5]} 25... Kg7 {[%clk 0:00:56.4]} 26. Ne4 {[%clk 0:00:23.3]}
26... Be7 {[%clk 0:00:52.6]} 27. h4 {[%clk 0:00:11.5]} 27... c4 {[%clk 0:00:45]}
28. dxc4 {[%clk 0:00:04.3]} 28... bxc4 {[%clk 0:00:45.9]} 29. Rxd4 {[%clk
0:00:04.5]} 29... cxb3 {[%clk 0:00:45.6]} 30. cxb3 {[%clk 0:00:05.4]} 30... Nf6
{[%clk 0:00:41.3]} 31. Rad1 {[%clk 0:00:03.8]} 31... Nxe4 {[%clk 0:00:38.1]} 32.
Rxe4 {[%clk 0:00:04.7]} 32... Bf6 {[%clk 0:00:37.9]} 33. Re3 {[%clk 0:00:02.3]}
33... Qxf3+ {[%clk 0:00:37.3]} 34. Rxf3 {[%clk 0:00:03.1]} 34... Bxb2 {[%clk
0:00:36.9]} 35. Rd7 {[%clk 0:00:04]} 35... Bf6 {[%clk 0:00:36.7]} 36. h5 {[%clk
0:00:02.7]} 36... gxh5 {[%clk 0:00:33.6]} 37. Rf5 {[%clk 0:00:02.3]} 37... Kg6
{[%clk 0:00:32.5]} 38. Rf4 {[%clk 0:00:02.7]} 38... Rc5 {[%clk 0:00:26.7]} 39.
Rd6 {[%clk 0:00:02.7]} 39... Rf5 {[%clk 0:00:26.2]} 40. Rc4 {[%clk 0:00:03.1]}
40... Re8 {[%clk 0:00:21.7]} 41. f4 {[%clk 0:00:02.6]} 41... Re3 {[%clk
0:00:19.9]} 42. Rdc6 {[%clk 0:00:02.3]} 42... Rd5 {[%clk 0:00:17.5]} 0-1

[Event "*** Titled Tuesday Blitz"]
[Site "Chess.com"]
[Date "2020.12.01"]
[Round "10"]
[White "MatyChess1"]
[Black "MFBerna"]
[Result "1-0"]
[WhiteElo "2571"]
[BlackElo "2434"]
[TimeControl "180+1"]
[EndTime "11:55:11 PST"]
[Termination "MatyChess1 won by resignation"]

1. e4 {[%clk 0:03:00.9]} 1... c6 {[%clk 0:03:00.2]} 2. Nc3 {[%clk 0:03:00.7]}
2... d5 {[%clk 0:03:01.1]} 3. Nf3 {[%clk 0:03:01.4]} 3... Bg4 {[%clk 0:03:00.4]}
4. h3 {[%clk 0:03:01.4]} 4... Bxf3 {[%clk 0:03:00.9]} 5. Qxf3 {[%clk 0:03:02.3]}
5... e6 {[%clk 0:03:01.8]} 6. Be2 {[%clk 0:03:01.8]} 6... Nd7 {[%clk 0:03:02]}
7. O-O {[%clk 0:03:01.1]} 7... Ngf6 {[%clk 0:03:02.1]} 8. d4 {[%clk 0:02:57.7]}
8... dxe4 {[%clk 0:03:02.2]} 9. Nxe4 {[%clk 0:02:58.3]} 9... Be7 {[%clk
0:03:02.1]} 10. Rd1 {[%clk 0:02:57.7]} 10... Nxe4 {[%clk 0:03:02.2]} 11. Qxe4
{[%clk 0:02:57.7]} 11... Qa5 {[%clk 0:02:57.3]} 12. c4 {[%clk 0:02:54.4]} 12...
O-O {[%clk 0:02:53.8]} 13. a3 {[%clk 0:02:37.5]} 13... Nf6 {[%clk 0:02:51.4]}
14. Qe3 {[%clk 0:02:05.5]} 14... Rfd8 {[%clk 0:02:43.5]} 15. Bd2 {[%clk
0:02:04.9]} 15... Qc7 {[%clk 0:02:31.9]} 16. Bc3 {[%clk 0:02:01.7]} 16... Rd7
{[%clk 0:02:25.8]} 17. g3 {[%clk 0:02:00.2]} 17... Rad8 {[%clk 0:02:25.7]} 18.
Bf3 {[%clk 0:02:00.7]} 18... c5 {[%clk 0:01:51.4]} 19. dxc5 {[%clk 0:01:41.4]}
19... Bxc5 {[%clk 0:01:45.2]} 20. Rxd7 {[%clk 0:00:43.2]} 20... Qxg3+ {[%clk
0:01:20.1]} 21. Kf1 {[%clk 0:00:22.4]} 21... Nxd7 {[%clk 0:00:45.4]} 22. fxg3
{[%clk 0:00:15.7]} 22... Bxe3 {[%clk 0:00:45.3]} 23. Bxb7 {[%clk 0:00:15.5]}
23... Nc5 {[%clk 0:00:39.1]} 24. Bf3 {[%clk 0:00:15.9]} 24... Bd4 {[%clk
0:00:34.1]} 25. Rd1 {[%clk 0:00:13.7]} 25... e5 {[%clk 0:00:34.3]} 26. b4 {[%clk
0:00:05.4]} 26... Ne6 {[%clk 0:00:32.7]} 27. Bxd4 {[%clk 0:00:02.7]} 27... Nxd4
{[%clk 0:00:33.6]} 28. Bd5 {[%clk 0:00:03.5]} 28... Kf8 {[%clk 0:00:31.2]} 29.
g4 {[%clk 0:00:04.1]} 29... Nc2 {[%clk 0:00:30.5]} 30. Kf2 {[%clk 0:00:04.3]}
30... Nxa3 {[%clk 0:00:28.8]} 31. Ra1 {[%clk 0:00:04.8]} 31... Nc2 {[%clk
0:00:23.8]} 32. Rxa7 {[%clk 0:00:04.6]} 32... Nxb4 {[%clk 0:00:22.8]} 33. Rxf7+
{[%clk 0:00:05.5]} 33... Ke8 {[%clk 0:00:20.6]} 34. Rxg7 {[%clk 0:00:05.7]}
34... Nxd5 {[%clk 0:00:20.8]} 35. Rg8+ {[%clk 0:00:05.6]} 35... Ke7 {[%clk
0:00:19.4]} 36. Rxd8 {[%clk 0:00:06.5]} 36... Kxd8 {[%clk 0:00:18.5]} 37. cxd5
{[%clk 0:00:07.4]} 37... Ke7 {[%clk 0:00:19.1]} 38. Kf3 {[%clk 0:00:08.3]} 38...
Kd7 {[%clk 0:00:10.1]} 39. Ke4 {[%clk 0:00:06.3]} 39... Kd6 {[%clk 0:00:11]} 40.
h4 {[%clk 0:00:06.4]} 40... h6 {[%clk 0:00:11.3]} 41. h5 {[%clk 0:00:06.6]} 1-0

[Event "*** Titled Tuesday Blitz"]
[Site "Chess.com"]
[Date "2020.12.01"]
[Round "10"]
[White "vladimirdamjanovic"]
[Black "kinga2008"]
[Result "1-0"]
[WhiteElo "2453"]
[BlackElo "2205"]
[TimeControl "180+1"]
[EndTime "11:55:11 PST"]
[Termination "vladimirdamjanovic won by resignation"]

1. e4 {[%clk 0:03:00]} 1... c5 {[%clk 0:03:00.9]} 2. Nf3 {[%clk 0:03:00]} 2...
Nc6 {[%clk 0:02:49.9]} 3. Nc3 {[%clk 0:02:57.9]} 3... g6 {[%clk 0:02:47.1]} 4.
Bc4 {[%clk 0:02:54.5]} 4... Bg7 {[%clk 0:02:44.9]} 5. d3 {[%clk 0:02:53.3]} 5...
e6 {[%clk 0:02:43.6]} 6. O-O {[%clk 0:02:52.3]} 6... Nge7 {[%clk 0:02:41.6]} 7.
Re1 {[%clk 0:02:50.8]} 7... O-O {[%clk 0:02:40.3]} 8. Bg5 {[%clk 0:02:36.5]}
8... h6 {[%clk 0:02:30.1]} 9. Bd2 {[%clk 0:02:23.1]} 9... a6 {[%clk 0:02:22.4]}
10. a4 {[%clk 0:02:21.8]} 10... d5 {[%clk 0:02:19.5]} 11. exd5 {[%clk
0:02:20.2]} 11... exd5 {[%clk 0:02:18.8]} 12. Ba2 {[%clk 0:02:08.3]} 12... Be6
{[%clk 0:01:59.1]} 13. Ne2 {[%clk 0:01:59.3]} 13... Nf5 {[%clk 0:01:49.1]} 14.
Nf4 {[%clk 0:01:54.1]} 14... Re8 {[%clk 0:01:45.7]} 15. Nxe6 {[%clk 0:01:36.8]}
15... fxe6 {[%clk 0:01:43.2]} 16. c3 {[%clk 0:01:37.1]} 16... e5 {[%clk
0:01:30.8]} 17. Qb3 {[%clk 0:01:28.1]} 17... Nfe7 {[%clk 0:00:58.2]} 18. Qc2
{[%clk 0:01:23]} 18... Kh7 {[%clk 0:00:35]} 19. Rab1 {[%clk 0:01:18.3]} 19... b5
{[%clk 0:00:18.3]} 20. b4 {[%clk 0:01:04.7]} 20... c4 {[%clk 0:00:16.1]} 21.
dxc4 {[%clk 0:01:01.2]} 21... dxc4 {[%clk 0:00:15.3]} 22. Be3 {[%clk 0:00:59.4]}
22... Qd3 {[%clk 0:00:11]} 23. Qb2 {[%clk 0:00:49.7]} 23... e4 {[%clk
0:00:04.3]} 24. Rbd1 {[%clk 0:00:48.7]} 24... Qxc3 {[%clk 0:00:03.8]} 25. Qb1
{[%clk 0:00:42.3]} 25... exf3 {[%clk 0:00:03.5]} 26. Bd2 {[%clk 0:00:37.9]}
26... Qd3 {[%clk 0:00:03.1]} 27. Qc1 {[%clk 0:00:32.8]} 27... Nf5 {[%clk
0:00:03.3]} 28. Bb1 {[%clk 0:00:32]} 28... Qb3 {[%clk 0:00:03.1]} 29. Bc2 {[%clk
0:00:28.2]} 29... Qxb4 {[%clk 0:00:02.7]} 30. Bxb4 {[%clk 0:00:28]} 30... Nxb4
{[%clk 0:00:03.6]} 31. Rxe8 {[%clk 0:00:25.6]} 31... Rxe8 {[%clk 0:00:04.5]} 32.
Bxf5 {[%clk 0:00:25.7]} 32... gxf5 {[%clk 0:00:05]} 33. axb5 {[%clk 0:00:24.3]}
33... c3 {[%clk 0:00:03.5]} 34. bxa6 {[%clk 0:00:22]} 34... c2 {[%clk
0:00:03.6]} 35. Rd7 {[%clk 0:00:18.2]} 35... Kh8 {[%clk 0:00:02]} 36. a7 {[%clk
0:00:12.4]} 36... Rc8 {[%clk 0:00:01]} 37. Rc7 {[%clk 0:00:07.9]} 37... Na2
{[%clk 0:00:01.5]} 38. Rxc8+ {[%clk 0:00:07.8]} 1-0

[Event "*** Titled Tuesday Blitz"]
[Site "Chess.com"]
[Date "2020.12.01"]
[Round "10"]
[White "marciojor"]
[Black "mr65"]
[Result "1-0"]
[WhiteElo "2259"]
[BlackElo "2177"]
[TimeControl "180+1"]
[EndTime "11:55:11 PST"]
[Termination "marciojor won on time"]

1. e4 {[%clk 0:03:00.9]} 1... e5 {[%clk 0:02:59]} 2. Nf3 {[%clk 0:03:00.8]} 2...
Nc6 {[%clk 0:02:59.2]} 3. d4 {[%clk 0:03:00.5]} 3... exd4 {[%clk 0:02:58.2]} 4.
Nxd4 {[%clk 0:03:01.2]} 4... Bb4+ {[%clk 0:02:56.8]} 5. c3 {[%clk 0:02:56.4]}
5... Bc5 {[%clk 0:02:56.5]} 6. Nb3 {[%clk 0:02:53.6]} 6... Bb6 {[%clk
0:02:56.1]} 7. Qe2 {[%clk 0:02:53.4]} 7... Nge7 {[%clk 0:02:55.4]} 8. g3 {[%clk
0:02:52.6]} 8... O-O {[%clk 0:02:54.6]} 9. Bg2 {[%clk 0:02:52.7]} 9... d5 {[%clk
0:02:52.7]} 10. O-O {[%clk 0:02:51]} 10... dxe4 {[%clk 0:02:50]} 11. Qxe4 {[%clk
0:02:47.7]} 11... Bf5 {[%clk 0:02:43.1]} 12. Qf4 {[%clk 0:02:46.4]} 12... Bg6
{[%clk 0:02:32]} 13. Na3 {[%clk 0:02:41.7]} 13... Nd5 {[%clk 0:02:30.4]} 14. Qd2
{[%clk 0:02:39.4]} 14... Nf6 {[%clk 0:02:26.2]} 15. h3 {[%clk 0:02:26.7]} 15...
Re8 {[%clk 0:02:25.5]} 16. Qf4 {[%clk 0:02:21.4]} 16... Be4 {[%clk 0:02:17.6]}
17. Bd2 {[%clk 0:01:48.9]} 17... Bxg2 {[%clk 0:02:15.5]} 18. Kxg2 {[%clk
0:01:48.9]} 18... Re4 {[%clk 0:02:14.7]} 19. Qf5 {[%clk 0:01:31.7]} 19... Re5
{[%clk 0:02:12.4]} 20. Qf3 {[%clk 0:01:30.7]} 20... Qd7 {[%clk 0:01:55.7]} 21.
Nc4 {[%clk 0:01:29.6]} 21... Rf5 {[%clk 0:01:53.1]} 22. Nxb6 {[%clk 0:01:23.9]}
22... axb6 {[%clk 0:01:49.2]} 23. Qe2 {[%clk 0:01:21.6]} 23... Qd5+ {[%clk
0:01:46.9]} 24. Kg1 {[%clk 0:01:20.7]} 24... Re5 {[%clk 0:01:44.7]} 25. Be3
{[%clk 0:01:19.7]} 25... Qe6 {[%clk 0:01:40.9]} 26. Kg2 {[%clk 0:01:13.5]} 26...
Nd5 {[%clk 0:01:32.1]} 27. Rfe1 {[%clk 0:01:13.6]} 27... Nxe3+ {[%clk
0:01:26.7]} 28. fxe3 {[%clk 0:01:12.8]} 28... Re8 {[%clk 0:01:26.4]} 29. Rad1
{[%clk 0:01:02.6]} 29... Rxe3 {[%clk 0:01:19]} 30. Qxe3 {[%clk 0:01:02.4]} 30...
Qxe3 {[%clk 0:01:18.7]} 31. Rxe3 {[%clk 0:01:02.5]} 31... Rxe3 {[%clk
0:01:18.6]} 32. Kf2 {[%clk 0:00:57.2]} 32... Re7 {[%clk 0:01:14.4]} 33. Nd4
{[%clk 0:00:57.3]} 33... Nxd4 {[%clk 0:01:13.4]} 34. Rxd4 {[%clk 0:00:57.2]}
34... f5 {[%clk 0:01:11.7]} 35. Rd8+ {[%clk 0:00:55.3]} 35... Kf7 {[%clk
0:01:11.6]} 36. Rb8 {[%clk 0:00:55.4]} 36... Rd7 {[%clk 0:01:05.1]} 37. Ke2
{[%clk 0:00:54.3]} 37... c6 {[%clk 0:01:03.6]} 38. Rh8 {[%clk 0:00:53.3]} 38...
h6 {[%clk 0:01:01.8]} 39. a3 {[%clk 0:00:51.1]} 39... b5 {[%clk 0:01:01.5]} 40.
Rc8 {[%clk 0:00:49.2]} 40... g5 {[%clk 0:00:55.8]} 41. Rh8 {[%clk 0:00:47.9]}
41... Kg7 {[%clk 0:00:55.2]} 42. Re8 {[%clk 0:00:48.1]} 42... Kf6 {[%clk
0:00:51.8]} 43. Rh8 {[%clk 0:00:47.7]} 43... Kg6 {[%clk 0:00:48.5]} 44. Rg8+
{[%clk 0:00:47.5]} 44... Rg7 {[%clk 0:00:45.8]} 45. Rb8 {[%clk 0:00:45.4]} 45...
g4 {[%clk 0:00:44.1]} 46. h4 {[%clk 0:00:44.6]} 46... f4 {[%clk 0:00:41.6]} 47.
gxf4 {[%clk 0:00:44.3]} 47... Kh5 {[%clk 0:00:38.4]} 48. Kf2 {[%clk 0:00:36.2]}
1-0

[Event "*** Titled Tuesday Blitz"]
[Site "Chess.com"]
[Date "2020.12.01"]
[Round "10"]
[White "ApacheSVD"]
[Black "MarceloPlaya"]
[Result "1-0"]
[WhiteElo "2418"]
[BlackElo "2280"]
[TimeControl "180+1"]
[EndTime "11:55:13 PST"]
[Termination "ApacheSVD won on time"]

1. e4 {[%clk 0:02:49.6]} 1... e6 {[%clk 0:02:58.6]} 2. d4 {[%clk 0:02:47.9]}
2... d5 {[%clk 0:02:58.3]} 3. Nd2 {[%clk 0:02:48.3]} 3... c5 {[%clk 0:02:57]} 4.
exd5 {[%clk 0:02:45.6]} 4... exd5 {[%clk 0:02:56.4]} 5. Ngf3 {[%clk 0:02:44.1]}
5... Nc6 {[%clk 0:02:53.4]} 6. Bb5 {[%clk 0:02:43.8]} 6... Bd6 {[%clk
0:02:52.9]} 7. O-O {[%clk 0:02:43.9]} 7... Ne7 {[%clk 0:02:52.1]} 8. dxc5 {[%clk
0:02:44.3]} 8... Bxc5 {[%clk 0:02:52]} 9. Nb3 {[%clk 0:02:45.2]} 9... Bb6 {[%clk
0:02:51.7]} 10. c3 {[%clk 0:02:45.7]} 10... O-O {[%clk 0:02:51.1]} 11. Nbd4
{[%clk 0:02:44.1]} 11... Bg4 {[%clk 0:02:50.1]} 12. h3 {[%clk 0:02:37.8]} 12...
Bh5 {[%clk 0:02:48.6]} 13. Be3 {[%clk 0:02:34.6]} 13... Qd6 {[%clk 0:02:41.7]}
14. Qd2 {[%clk 0:02:26.8]} 14... Bc7 {[%clk 0:02:32.3]} 15. g4 {[%clk
0:02:03.3]} 15... Nxd4 {[%clk 0:02:20.9]} 16. Bxd4 {[%clk 0:02:01]} 16... Bg6
{[%clk 0:02:20.2]} 17. Be5 {[%clk 0:02:00.3]} 17... Qb6 {[%clk 0:02:19.3]} 18.
Bxc7 {[%clk 0:01:59.8]} 18... Qxc7 {[%clk 0:02:18.9]} 19. Bd3 {[%clk 0:01:58.4]}
19... Be4 {[%clk 0:02:17.4]} 20. Nd4 {[%clk 0:01:55.9]} 20... Ng6 {[%clk
0:02:05.9]} 21. Rae1 {[%clk 0:01:52.8]} 21... Rae8 {[%clk 0:02:01.7]} 22. Re3
{[%clk 0:01:11.8]} 22... Re7 {[%clk 0:01:22.3]} 23. Rfe1 {[%clk 0:01:03.9]}
23... Rfe8 {[%clk 0:01:21.1]} 24. Bb5 {[%clk 0:00:42.9]} 24... Rd8 {[%clk
0:01:11.5]} 25. f3 {[%clk 0:00:42.8]} 25... Qg3+ {[%clk 0:00:32]} 26. Qg2 {[%clk
0:00:38.7]} 26... Qh4 {[%clk 0:00:31.8]} 27. fxe4 {[%clk 0:00:33.9]} 27... Nf4
{[%clk 0:00:29.9]} 28. Qf3 {[%clk 0:00:31.1]} 28... Qg5 {[%clk 0:00:22.5]} 29.
e5 {[%clk 0:00:31]} 29... a6 {[%clk 0:00:19.2]} 30. Bf1 {[%clk 0:00:30.8]} 30...
Rde8 {[%clk 0:00:18.1]} 31. Nf5 {[%clk 0:00:29.9]} 31... Rd7 {[%clk 0:00:17.5]}
32. h4 {[%clk 0:00:17.2]} 32... Qg6 {[%clk 0:00:11.2]} 33. Qxf4 {[%clk 0:00:17]}
33... h6 {[%clk 0:00:09]} 34. h5 {[%clk 0:00:16.6]} 34... Qc6 {[%clk 0:00:08.9]}
35. e6 {[%clk 0:00:16.7]} 35... fxe6 {[%clk 0:00:07.6]} 36. Nxh6+ {[%clk
0:00:15]} 36... gxh6 {[%clk 0:00:06.2]} 37. Qxh6 {[%clk 0:00:14.8]} 37... Rde7
{[%clk 0:00:03.9]} 38. Bd3 {[%clk 0:00:13.8]} 38... e5 {[%clk 0:00:01.8]} 39.
Qxc6 {[%clk 0:00:13.4]} 39... bxc6 {[%clk 0:00:01.8]} 40. Bg6 {[%clk 0:00:14.1]}
40... Rf8 {[%clk 0:00:01.4]} 41. Rxe5 {[%clk 0:00:14.4]} 1-0

[Event "*** Titled Tuesday Blitz"]
[Site "Chess.com"]
[Date "2020.12.01"]
[Round "10"]
[White "1977Ivan"]
[Black "bazar-wokzal"]
[Result "1-0"]
[WhiteElo "2685"]
[BlackElo "2545"]
[TimeControl "180+1"]
[EndTime "11:55:17 PST"]
[Termination "1977Ivan won by resignation"]

1. d4 {[%clk 0:03:00.9]} 1... Nf6 {[%clk 0:02:59.7]} 2. Nf3 {[%clk 0:03:01.4]}
2... e6 {[%clk 0:02:59.8]} 3. c4 {[%clk 0:02:57.1]} 3... Nc6 {[%clk 0:02:59.6]}
4. Nc3 {[%clk 0:02:48.9]} 4... Bb4 {[%clk 0:02:59]} 5. Qc2 {[%clk 0:02:49.3]}
5... d6 {[%clk 0:02:58.6]} 6. Bg5 {[%clk 0:02:48.5]} 6... h6 {[%clk 0:02:58.3]}
7. Bd2 {[%clk 0:02:48.3]} 7... O-O {[%clk 0:02:55.5]} 8. a3 {[%clk 0:02:45.7]}
8... Bxc3 {[%clk 0:02:55.3]} 9. Bxc3 {[%clk 0:02:46.6]} 9... a5 {[%clk
0:02:55.4]} 10. g3 {[%clk 0:02:45.7]} 10... Qe7 {[%clk 0:02:54.3]} 11. Bg2
{[%clk 0:02:45.3]} 11... e5 {[%clk 0:02:54.3]} 12. d5 {[%clk 0:02:45.5]} 12...
Nb8 {[%clk 0:02:52.5]} 13. O-O {[%clk 0:02:42.8]} 13... a4 {[%clk 0:02:52.5]}
14. Nh4 {[%clk 0:02:34.2]} 14... Re8 {[%clk 0:02:37.6]} 15. e4 {[%clk
0:02:18.8]} 15... g5 {[%clk 0:02:30.5]} 16. Nf3 {[%clk 0:02:07.7]} 16... Nbd7
{[%clk 0:02:25]} 17. Nd2 {[%clk 0:02:07.9]} 17... Nc5 {[%clk 0:02:24.6]} 18.
Rae1 {[%clk 0:02:04.8]} 18... g4 {[%clk 0:02:15]} 19. f4 {[%clk 0:02:02.9]}
19... gxf3 {[%clk 0:02:13.4]} 20. Nxf3 {[%clk 0:02:03]} 20... Nh7 {[%clk
0:02:01.7]} 21. Nh4 {[%clk 0:02:01.9]} 21... Kh8 {[%clk 0:01:52.1]} 22. Qe2
{[%clk 0:01:55.3]} 22... Rg8 {[%clk 0:01:34.6]} 23. Qh5 {[%clk 0:01:53.9]} 23...
Qg5 {[%clk 0:01:25.2]} 24. Qxf7 {[%clk 0:01:46.3]} 24... Bd7 {[%clk 0:01:24.1]}
25. Nf3 {[%clk 0:01:44.1]} 25... Qg7 {[%clk 0:01:17.2]} 26. Nxe5 {[%clk
0:01:31.9]} 26... dxe5 {[%clk 0:01:13.2]} 27. Qxg7+ {[%clk 0:01:23.7]} 27...
Kxg7 {[%clk 0:01:09.2]} 28. Bxe5+ {[%clk 0:01:24.6]} 28... Kg6 {[%clk
0:01:09.7]} 29. Bd4 {[%clk 0:01:19.9]} 29... Nb3 {[%clk 0:01:06.7]} 30. Bc3
{[%clk 0:01:19]} 30... Rgf8 {[%clk 0:01:01.2]} 31. e5 {[%clk 0:01:17.2]} 31...
Bf5 {[%clk 0:00:56.3]} 32. Rf4 {[%clk 0:01:13.8]} 32... Bd3 {[%clk 0:00:49.6]}
33. Rh4 {[%clk 0:00:59.1]} 33... Ng5 {[%clk 0:00:45.1]} 34. Re3 {[%clk
0:00:58.4]} 34... Nc1 {[%clk 0:00:40.1]} 35. Bd2 {[%clk 0:00:43.5]} 35... Ne2+
{[%clk 0:00:32.5]} 36. Kh1 {[%clk 0:00:42.9]} 36... Rf2 {[%clk 0:00:18.6]} 37.
Rxd3 {[%clk 0:00:40.7]} 37... Raf8 {[%clk 0:00:18.5]} 38. Be3 {[%clk 0:00:29.8]}
38... R2f5 {[%clk 0:00:14.2]} 39. e6 {[%clk 0:00:27.3]} 39... Re5 {[%clk
0:00:10.6]} 40. Bxg5 {[%clk 0:00:22]} 40... hxg5 {[%clk 0:00:09.2]} 41. Re4
{[%clk 0:00:20.6]} 41... Rff5 {[%clk 0:00:06]} 42. Rde3 {[%clk 0:00:16.3]} 42...
Kf6 {[%clk 0:00:04]} 43. Rxe5 {[%clk 0:00:15.7]} 43... Rxe5 {[%clk 0:00:04.6]}
44. Rxe5 {[%clk 0:00:16.2]} 1-0